[Event "30th Abu Dhabi Festival A-Open 2024"]
[Site "Abu Dhabi"]
[Date "2024.08.21"]
[Round "6.11"]
[White "Wen, Gehua"]
[Black "Saif, Ahmed"]
[Result "1/2-1/2"]
[ECO "A35"]
[WhiteElo "2119"]
[BlackElo "2022"]
[Annotator "RC"]
[PlyCount "93"]
[EventDate "2024.08.15"]
[EventType "swiss"]
[EventCountry "UAE"]
[SourceTitle "playchess.com"]
[Source "ChessBase"]
[SourceQuality "1"]
[TimeControl "5400+30"]

1. Nf3 {[%emt 0:00:05]} c5 {[%emt 0:01:27]} 2. c4 {[%emt 0:00:15]} Nc6 {[%emt 0:00:20]} 3. Nc3 {[%emt 0:00:07]} g6 {[%emt 0:00:05]} 4. e3 {[%emt 0:00:26]} Nf6 {[%emt 0:01:00]} 5. d4 {[%emt 0:00:18]} cxd4 {[%emt 0:00:17]} 6. exd4 {[%emt 0:00:06]} d5 {[%emt 0:00:05]} 7. cxd5 {[%emt 0:00:13]} Nxd5 {[%emt 0:00:09]} 8. Qb3 {[%emt 0:00:07]} Nxc3 {[%emt 0:00:11]} 9. Bc4 {[%emt 0:00:39]} Nd5 {[%emt 0:00:19]} 10. Bxd5 {[%emt 0:00:22]} e6 {[%emt 0:00:07]} 11. Bxc6+ {[%emt 0:04:44]} bxc6 {[%emt 0:00:35]} 12. O-O {[%emt 0:00:09]} Qd5 {[%emt 0:01:11]} 13. Qa4 {[%emt 0:09:22]} f6 {[%emt 0:09:20]} 14. Bf4 {[%emt 0:10:28]} Kf7 {[%emt 0:04:28]} 15. Rac1 {[%emt 0:01:09]} Be7 {[%emt 0:09:00]} 16. Rfd1 {[%emt 0:07:44]} Rd8 {[%emt 0:20:21]} 17. Qxc6 {[%emt 0:38:45]} Bb7 {[%emt 0:08:18]} 18. Qxd5 {[%emt 0:00:37]} Bxd5 {[%emt 0:00:14]} 19. a3 {[%emt 0:00:05]} a5 {[%emt 0:12:08]} 20. Ne1 {[%emt 0:09:07]} g5 {[%emt 0:02:05]} 21. Be3 {[%emt 0:03:07]} Rab8 {[%emt 0:02:37]} 22. Nd3 {[%emt 0:01:10]} Rb7 {[%emt 0:04:00]} 23. f3 {[%emt 0:01:31]} h5 {[%emt 0:00:43]} 24. Kf2 {[%emt 0:02:02]} h4 {[%emt 0:01:27]} 25. b4 {[%emt 0:03:38]} axb4 {[%emt 0:02:40]} 26. Nxb4 {[%emt 0:00:14]} Bxb4 {[%emt 0:00:47]} 27. axb4 {[%emt 0:00:01]} Rxb4 {[%emt 0:00:02]} 28. Rb1 {[%emt 0:00:08]} Rdb8 {[%emt 0:00:15]} 29. Rxb4 {[%emt 0:00:07]} Rxb4 {[%emt 0:00:07]} 30. h3 {[%emt 0:00:56]} Kg6 {[%emt 0:00:38]} 31. f4 {[%emt 0:00:37]} gxf4 {[%emt 0:01:14]} 32. Bxf4 {[%emt 0:00:02]} Kf5 {[%emt 0:00:01]} 33. Bh6 {[%emt 0:00:39]} Rb3 {[%emt 0:01:36]} 34. Rd2 {[%emt 0:03:56]} Rg3 {[%emt 0:02:14]} 35. Kf1 {[%emt 0:00:19]} Ke4 {[%emt 0:01:29]} 36. Bf8 {[%emt 0:00:11]} Rb3 {[%emt 0:04:25]} 37. Kg1 {[%emt 0:01:33]} f5 {[%emt 0:04:29]} 38. Be7 {[%emt 0:00:44]} Rb1+ {[%emt 0:01:17]} 39. Kh2 {[%emt 0:00:06]} f4 {[%emt 0:00:23]} 40. Bxh4 {[%emt 0:00:49]} f3 {[%emt 0:00:27]} 41. gxf3+ {[%emt 0:01:01]} Kxf3 {[%emt 0:00:22]} 42. Bf6 {[%emt 0:02:06]} Kf4 {[%emt 0:03:19]} 43. Be5+ {[%emt 0:00:02]} Kg5 {[%emt 0:00:14]} 44. Kg3 {[%emt 0:00:42]} Rg1+ {[%emt 0:00:22]} 45. Kf2 {[%emt 0:00:32]} Rg2+ {[%emt 0:00:10]} 46. Ke3 {[%emt 0:00:06]} Rxd2 {[%emt 0:00:14]} 47. Kxd2 {[%emt 0:00:02]} 1/2-1/2

[Event "30th Abu Dhabi Festival A-Open 2024"]
[Site "Abu Dhabi"]
[Date "2024.08.21"]
[Round "6.12"]
[White "Kazhmuratov, Altair"]
[Black "EYENGHE, Sunny"]
[Result "0-1"]
[ECO "E91"]
[WhiteElo "1994"]
[BlackElo "2098"]
[Annotator "RC"]
[PlyCount "118"]
[EventDate "2024.08.15"]
[EventType "swiss"]
[EventCountry "UAE"]
[SourceTitle "playchess.com"]
[Source "ChessBase"]
[SourceQuality "1"]
[TimeControl "5400+30"]

1. Nf3 {[%emt 0:00:05]} Nf6 {[%emt 0:04:29]} 2. c4 {[%emt 0:00:10]} g6 {[%emt 0:01:30]} 3. Nc3 {[%emt 0:08:28]} Bg7 {[%emt 0:00:19]} 4. e4 {[%emt 0:03:09]} d6 {[%emt 0:00:11]} 5. d4 {[%emt 0:00:07]} Bg4 {[%emt 0:00:15]} 6. Be2 {[%emt 0:03:49]} O-O {[%emt 0:00:37]} 7. O-O {[%emt 0:00:34]} Bxf3 {[%emt 0:00:27]} 8. Bxf3 {[%emt 0:00:08]} e5 {[%emt 0:00:27]} 9. Be3 {[%emt 0:02:22]} exd4 {[%emt 0:00:38]} 10. Bxd4 {[%emt 0:00:25]} Nc6 {[%emt 0:00:02]} 11. Be3 {[%emt 0:00:14]} a6 {[%emt 0:00:59]} 12. h3 {[%emt 0:08:58]} Re8 {[%emt 0:04:49]} 13. Qc2 {[%emt 0:01:24]} h6 {[%emt 0:00:43]} 14. Rad1 {[%emt 0:01:13]} Qc8 {[%emt 0:01:00]} 15. Nd5 {[%emt 0:03:40]} Ne5 {[%emt 0:02:47]} 16. Be2 {[%emt 0:01:35]} Ned7 {[%emt 0:04:08]} 17. f3 {[%emt 0:02:13]} Kh7 {[%emt 0:00:45]} 18. Rfe1 {[%emt 0:02:11]} Nh5 {[%emt 0:12:17]} 19. f4 {[%emt 0:04:03]} Ng3 {[%emt 0:06:12]} 20. Bf3 {[%emt 0:00:39]} f5 {[%emt 0:00:42]} 21. Bf2 {[%emt 0:10:00]} Nxe4 {[%emt 0:02:08]} 22. Bxe4 {[%emt 0:01:05]} fxe4 {[%emt 0:00:27]} 23. Rxe4 {[%emt 0:00:08]} Rxe4 {[%emt 0:02:33]} 24. Qxe4 {[%emt 0:00:04]} Nf6 {[%emt 0:01:59]} 25. Qe7 {[%emt 0:03:46]} Nxd5 {[%emt 0:00:24]} 26. cxd5 {[%emt 0:43:00]} Qd8 {[%emt 0:03:14]} 27. Re1 {[%emt 0:00:00]} Kh8 {[%emt 0:00:16]} 28. Qf7 {[%emt 0:00:00]} Qf6 {[%emt 0:03:06]} 29. Re7 {[%emt 0:00:00]} Qxf7 {[%emt 0:03:54]} 30. Rxf7 {[%emt 0:00:00]} Rc8 {[%emt 0:00:11]} 31. b3 {[%emt 0:00:00]} Kg8 {[%emt 0:00:28]} 32. Rd7 {[%emt 0:00:00]} Bf6 {[%emt 0:00:24]} 33. g4 {[%emt 0:00:00]} Kf8 {[%emt 0:00:37]} 34. Rh7 {[%emt 0:00:00]} Bg7 {[%emt 0:00:34]} 35. f5 {[%emt 0:00:00]} gxf5 {[%emt 0:00:19]} 36. g5 {[%emt 0:00:00]} hxg5 {[%emt 0:00:47]} 37. Rh5 {[%emt 0:00:00]} Bf6 {[%emt 0:00:56]} 38. Rh7 {[%emt 0:02:14]} b5 {[%emt 0:04:48]} 39. Kg2 {[%emt 0:03:01]} c6 {[%emt 0:00:46]} 40. Rd7 {[%emt 0:00:42]} Be7 {[%emt 0:00:44]} 41. Ra7 {[%emt 0:00:36]} cxd5 {[%emt 0:00:21]} 42. Rxa6 {[%emt 0:00:03]} Rc2 {[%emt 0:00:24]} 43. Ra5 {[%emt 0:01:04]} g4 {[%emt 0:03:01]} 44. hxg4 {[%emt 0:00:01]} Bh4 {[%emt 0:00:24]} 45. Kh3 {[%emt 0:01:03]} Bxf2 {[%emt 0:00:22]} 46. gxf5 {[%emt 0:00:02]} d4 {[%emt 0:00:47]} 47. Rxb5 {[%emt 0:00:21]} d3 {[%emt 0:00:20]} 48. Rd5 {[%emt 0:00:03]} d2 {[%emt 0:00:17]} 49. Kg4 {[%emt 0:00:52]} Be3 {[%emt 0:00:22]} 50. Kf3 {[%emt 0:00:08]} Rc1 {[%emt 0:00:18]} 51. Rxd6 {[%emt 0:00:36]} d1=Q+ {[%emt 0:02:24]} 52. Rxd1 {[%emt 0:00:03]} Rxd1 {[%emt 0:00:17]} 53. Kxe3 {[%emt 0:00:01]} Ra1 {[%emt 0:00:14]} 54. Kd4 {[%emt 0:00:10]} Rxa2 {[%emt 0:00:18]} 55. b4 {[%emt 0:01:09]} Ke7 {[%emt 0:00:14]} 56. Kc5 {[%emt 0:02:11]} Kd7 {[%emt 0:00:59]} 57. b5 {[%emt 0:00:31]} Rf2 {[%emt 0:00:22]} 58. Kb6 {[%emt 0:00:25]} Rxf5 {[%emt 0:00:38]} 59. Ka6 {[%emt 0:00:03]} Kc7 {[%emt 0:00:25]} 0-1

[Event "30th Abu Dhabi Festival A-Open 2024"]
[Site "Abu Dhabi"]
[Date "2024.08.22"]
[Round "7.1"]
[White "Md Imran"]
[Black "Manukyan, Sargis A."]
[Result "0-1"]
[ECO "E06"]
[WhiteElo "2225"]
[BlackElo "2211"]
[Annotator "RC"]
[PlyCount "100"]
[EventDate "2024.08.15"]
[EventType "swiss"]
[EventCountry "UAE"]
[SourceTitle "playchess.com"]
[Source "ChessBase"]
[SourceQuality "1"]
[TimeControl "5400+30"]

1. d4 {[%emt 0:00:05]} d5 {[%emt 0:00:04]} 2. Nf3 {[%emt 0:00:04]} Nf6 {[%emt 0:00:02]} 3. c4 {[%emt 0:00:04]} e6 {[%emt 0:00:04]} 4. g3 {[%emt 0:00:02]} Be7 {[%emt 0:00:06]} 5. Bg2 {[%emt 0:00:07]} O-O {[%emt 0:00:06]} 6. Nc3 {[%emt 0:01:01]} c5 {[%emt 0:01:20]} 7. O-O {[%emt 0:01:13]} cxd4 {[%emt 0:02:45]} 8. Nxd4 {[%emt 0:00:02]} e5 {[%emt 0:00:49]} 9. Nb3 {[%emt 0:03:26]} d4 {[%emt 0:00:59]} 10. Nd5 {[%emt 0:00:05]} Nc6 {[%emt 0:02:36]} 11. f4 {[%emt 0:05:44]} e4 {[%emt 0:12:05]} 12. Nxf6+ {[%emt 0:02:28]} Bxf6 {[%emt 0:00:05]} 13. Bxe4 {[%emt 0:00:01]} Re8 {[%emt 0:00:32]} 14. Bd3 {[%emt 0:07:09]} b6 {[%emt 0:07:54]} 15. Nd2 {[%emt 0:04:45]} Bb7 {[%emt 0:03:11]} 16. a3 {[%emt 0:00:05]} a5 {[%emt 0:06:00]} 17. Nf3 {[%emt 0:07:43]} Qc8 {[%emt 0:03:13]} 18. Qc2 {[%emt 0:01:41]} g6 {[%emt 0:03:00]} 19. Bd2 {[%emt 0:07:33]} Ne7 {[%emt 0:03:19]} 20. Rac1 {[%emt 0:12:08]} Qh3 {[%emt 0:05:06]} 21. Rf2 {[%emt 0:09:13]} Nf5 {[%emt 0:03:46]} 22. b4 {[%emt 0:07:43]} axb4 {[%emt 0:00:47]} 23. axb4 {[%emt 0:00:03]} Ra3 {[%emt 0:01:36]} 24. Qd1 {[%emt 0:05:38]} Ne3 {[%emt 0:10:55]} 25. Bxe3 {[%emt 0:00:09]} Rxe3 {[%emt 0:00:41]} 26. Qf1 {[%emt 0:03:13]} Qh5 {[%emt 0:01:53]} 27. Rd1 {[%emt 0:00:37]} g5 {[%emt 0:01:56]} 28. fxg5 {[%emt 0:02:00]} Bxg5 {[%emt 0:02:37]} 29. h4 {[%emt 0:03:25]} Rexd3 {[%emt 0:11:08]} 30. Rxd3 {[%emt 0:02:37]} Rxd3 {[%emt 0:00:05]} 31. exd3 {[%emt 0:02:44]} Be3 {[%emt 0:00:05]} 32. Kg2 {[%emt 0:00:02]} Bxf2 {[%emt 0:02:55]} 33. Qxf2 {[%emt 0:14:10]} Qf5 {[%emt 0:01:32]} 34. Qe2 {[%emt 0:00:00]} Kg7 {[%emt 0:00:09]} 35. Kf2 {[%emt 0:00:00]} Kf8 {[%emt 0:01:38]} 36. Kg2 {[%emt 0:00:00]} b5 {[%emt 0:03:44]} 37. c5 {[%emt 0:00:00]} Bc6 {[%emt 0:00:29]} 38. Kf2 {[%emt 0:00:00]} f6 {[%emt 0:00:13]} 39. Qd1 {[%emt 0:00:00]} Kg7 {[%emt 0:00:30]} 40. Qe2 {[%emt 0:00:00]} Kg6 {[%emt 0:00:31]} 41. g4 {[%emt 0:00:00]} Qf4 {[%emt 0:00:08]} 42. h5+ {[%emt 0:00:00]} Kf7 {[%emt 0:00:11]} 43. Qd1 {[%emt 0:00:00]} Kf8 {[%emt 0:00:16]} 44. Qe2 {[%emt 0:00:00]} h6 {[%emt 0:00:08]} 45. Qd1 {[%emt 0:00:00]} Qxg4 {[%emt 0:00:14]} 46. Qe2 {[%emt 0:00:00]} Qf4 {[%emt 0:00:26]} 47. Qd1 {[%emt 0:00:00]} Qe3+ {[%emt 0:00:47]} 48. Kg3 {[%emt 0:00:00]} f5 {[%emt 0:00:11]} 49. Qf1 {[%emt 0:00:00]} f4+ {[%emt 0:00:36]} 50. Kg4 {[%emt 0:00:00]} Bd7+ {[%emt 0:00:06]} 0-1

[Event "30th Abu Dhabi Festival A-Open 2024"]
[Site "Abu Dhabi"]
[Date "2024.08.22"]
[Round "7.2"]
[White "Shen, Fuyan"]
[Black "Lad Mandar Pradip"]
[Result "1-0"]
[ECO "A28"]
[WhiteElo "1826"]
[BlackElo "2254"]
[Annotator "RC"]
[PlyCount "67"]
[EventDate "2024.08.15"]
[EventType "swiss"]
[EventCountry "UAE"]
[SourceTitle "playchess.com"]
[Source "ChessBase"]
[SourceQuality "1"]
[TimeControl "5400+30"]

1. c4 {[%emt 0:00:03]} e5 {[%emt 0:00:15]} 2. Nc3 {[%emt 0:00:07]} Nf6 {[%emt 0:03:37]} 3. Nf3 {[%emt 0:00:10]} Nc6 {[%emt 0:00:29]} 4. e3 {[%emt 0:00:08]} Bb4 {[%emt 0:07:22]} 5. Qc2 {[%emt 0:00:07]} O-O {[%emt 0:20:11]} 6. Nd5 {[%emt 0:00:26]} Re8 {[%emt 0:00:03]} 7. Qf5 {[%emt 0:00:58]} d6 {[%emt 0:01:00]} 8. Nxf6+ {[%emt 0:00:06]} gxf6 {[%emt 0:00:07]} 9. Qh5 {[%emt 0:00:04]} d5 {[%emt 0:01:42]} 10. Bd3 {[%emt 0:00:30]} e4 {[%emt 0:02:03]} 11. cxd5 {[%emt 0:00:15]} exd3 {[%emt 0:01:06]} 12. dxc6 {[%emt 0:00:21]} bxc6 {[%emt 0:05:30]} 13. b3 {[%emt 0:07:13]} Qd5 {[%emt 0:14:37]} 14. Qh4 {[%emt 0:05:34]} Bf8 {[%emt 0:01:18]} 15. Bb2 {[%emt 0:02:21]} Bg7 {[%emt 0:00:04]} 16. h3 {[%emt 0:18:19]} Re4 {[%emt 0:04:20]} 17. Qg3 {[%emt 0:00:07]} Qd6 {[%emt 0:00:02]} 18. Rc1 {[%emt 0:03:29]} Bd7 {[%emt 0:02:24]} 19. O-O {[%emt 0:01:40]} a5 {[%emt 0:04:11]} 20. Bd4 {[%emt 0:04:57]} Kh8 {[%emt 0:03:01]} 21. Rc3 {[%emt 0:03:26]} Rg8 {[%emt 0:02:16]} 22. Ne1 {[%emt 0:08:52]} Rxd4 {[%emt 0:07:56]} 23. exd4 {[%emt 0:00:10]} Qd5 {[%emt 0:01:15]} 24. Rxd3 {[%emt 0:07:32]} Bf5 {[%emt 0:02:50]} 25. Rc3 {[%emt 0:03:36]} Be4 {[%emt 0:02:05]} 26. Qf4 {[%emt 0:02:41]} f5 {[%emt 0:02:12]} 27. Rg3 {[%emt 0:01:42]} Bb1 {[%emt 0:00:37]} 28. a3 {[%emt 0:03:46]} Ba2 {[%emt 0:04:07]} 29. Nf3 {[%emt 0:04:00]} Bxb3 {[%emt 0:01:51]} 30. Rc1 {[%emt 0:02:34]} a4 {[%emt 0:02:34]} 31. Ne5 {[%emt 0:02:15]} Qd6 {[%emt 0:01:56]} 32. Rxb3 {[%emt 0:01:21]} Bxe5 {[%emt 0:01:00]} 33. dxe5 {[%emt 0:00:03]} Qd5 {[%emt 0:00:18]} 34. Rg3 {[%emt 0:00:10]} 1-0

[Event "30th Abu Dhabi Festival A-Open 2024"]
[Site "Abu Dhabi"]
[Date "2024.08.22"]
[Round "7.3"]
[White "Diaz Villagran, Robert"]
[Black "Dinesh Rajan M"]
[Result "0-1"]
[ECO "C54"]
[WhiteElo "2268"]
[BlackElo "2092"]
[Annotator "RC"]
[PlyCount "119"]
[EventDate "2024.08.15"]
[EventType "swiss"]
[EventCountry "UAE"]
[SourceTitle "playchess.com"]
[Source "ChessBase"]
[SourceQuality "1"]
[TimeControl "5400+30"]

1. e4 {[%emt 0:00:03]} e5 {[%emt 0:00:25]} 2. Nf3 {[%emt 0:00:14]} Nc6 {[%emt 0:00:12]} 3. Bc4 {[%emt 0:00:35]} Nf6 {[%emt 0:00:08]} 4. d3 {[%emt 0:00:28]} Bc5 {[%emt 0:00:07]} 5. O-O {[%emt 0:00:13]} d6 {[%emt 0:00:38]} 6. c3 {[%emt 0:00:19]} a6 {[%emt 0:00:41]} 7. a4 {[%emt 0:00:15]} h6 {[%emt 0:00:40]} 8. Re1 {[%emt 0:01:22]} Ba7 {[%emt 0:00:22]} 9. b4 {[%emt 0:05:26]} g5 {[%emt 0:00:45]} 10. Be3 {[%emt 0:06:42]} Nh5 {[%emt 0:05:45]} 11. b5 {[%emt 0:07:21]} Na5 {[%emt 0:05:18]} 12. Ba2 {[%emt 0:10:37]} g4 {[%emt 0:04:20]} 13. Nfd2 {[%emt 0:00:55]} Nf4 {[%emt 0:01:54]} 14. Nf1 {[%emt 0:02:47]} h5 {[%emt 0:08:51]} 15. d4 {[%emt 0:07:13]} Qf6 {[%emt 0:09:50]} 16. Nbd2 {[%emt 0:04:28]} h4 {[%emt 0:09:35]} 17. Nc4 {[%emt 0:06:34]} Nxc4 {[%emt 0:05:24]} 18. Bxc4 {[%emt 0:00:48]} h3 {[%emt 0:09:41]} 19. Bxf4 {[%emt 0:13:31]} hxg2 {[%emt 0:03:08]} 20. Bg3 {[%emt 0:00:25]} gxf1=Q+ {[%emt 0:00:46]} 21. Bxf1 {[%emt 0:00:30]} a5 {[%emt 0:08:06]} 22. Bc4 {[%emt 0:12:33]} Be6 {[%emt 0:00:48]} 23. Bxe6 {[%emt 0:01:28]} Qxe6 {[%emt 0:00:15]} 24. dxe5 {[%emt 0:00:15]} dxe5 {[%emt 0:00:19]} 25. Qd5 {[%emt 0:00:02]} Qxd5 {[%emt 0:00:21]} 26. exd5 {[%emt 0:00:03]} f6 {[%emt 0:00:20]} 27. Re4 {[%emt 0:00:29]} O-O-O {[%emt 0:00:45]} 28. Rd1 {[%emt 0:02:15]} Rhg8 {[%emt 0:07:57]} 29. Kg2 {[%emt 0:00:10]} Bc5 {[%emt 0:00:56]} 30. f4 {[%emt 0:03:39]} gxf3+ {[%emt 0:00:22]} 31. Kxf3 {[%emt 0:00:01]} Bd6 {[%emt 0:01:17]} 32. Re2 {[%emt 0:02:13]} Rde8 {[%emt 0:00:43]} 33. Rde1 {[%emt 0:00:11]} Kd7 {[%emt 0:00:36]} 34. Re3 {[%emt 0:01:10]} Rg5 {[%emt 0:00:39]} 35. c4 {[%emt 0:01:38]} b6 {[%emt 0:00:26]} 36. Re4 {[%emt 0:00:40]} f5 {[%emt 0:02:56]} 37. Rh4 {[%emt 0:00:09]} Re7 {[%emt 0:01:06]} 38. Re2 {[%emt 0:01:31]} e4+ {[%emt 0:03:43]} 39. Kf2 {[%emt 0:00:01]} Rf7 {[%emt 0:00:19]} 40. Rh6 {[%emt 0:03:05]} f4 {[%emt 0:00:30]} 41. Bh4 {[%emt 0:00:01]} Bc5+ {[%emt 0:00:18]} 42. Ke1 {[%emt 0:00:03]} Rg1+ {[%emt 0:00:23]} 43. Kd2 {[%emt 0:00:03]} f3 {[%emt 0:01:23]} 44. Rxe4 {[%emt 0:00:03]} f2 {[%emt 0:00:23]} 45. Bxf2 {[%emt 0:00:02]} Rxf2+ {[%emt 0:00:06]} 46. Re2 {[%emt 0:00:26]} Rxe2+ {[%emt 0:00:14]} 47. Kxe2 {[%emt 0:00:01]} Ra1 {[%emt 0:00:17]} 48. h4 {[%emt 0:00:03]} Rxa4 {[%emt 0:00:04]} 49. Kd3 {[%emt 0:00:02]} Ra3+ {[%emt 0:00:05]} 50. Ke4 {[%emt 0:00:01]} Re3+ {[%emt 0:00:11]} 51. Kf5 {[%emt 0:00:04]} a4 {[%emt 0:00:06]} 52. Rh8 {[%emt 0:00:07]} Re8 {[%emt 0:00:35]} 53. Rh7+ {[%emt 0:00:01]} Kd8 {[%emt 0:00:10]} 54. Rg7 {[%emt 0:00:01]} a3 {[%emt 0:00:06]} 55. Rg2 {[%emt 0:00:06]} Rf8+ {[%emt 0:00:22]} 56. Ke6 {[%emt 0:00:00]} Bf2 {[%emt 0:00:19]} 57. d6 {[%emt 0:00:14]} a2 {[%emt 0:00:08]} 58. dxc7+ {[%emt 0:00:38]} Kxc7 {[%emt 0:00:05]} 59. Rg7+ {[%emt 0:00:04]} Kb8 {[%emt 0:00:04]} 60. h5 {[%emt 0:00:39]} 0-1

[Event "30th Abu Dhabi Festival A-Open 2024"]
[Site "Abu Dhabi"]
[Date "2024.08.22"]
[Round "7.4"]
[White "EYENGHE, Sunny"]
[Black "Rzayev, Chingiz"]
[Result "0-1"]
[ECO "E65"]
[WhiteElo "2098"]
[BlackElo "2134"]
[Annotator "RC"]
[PlyCount "98"]
[EventDate "2024.08.15"]
[EventType "swiss"]
[EventCountry "UAE"]
[SourceTitle "playchess.com"]
[Source "ChessBase"]
[SourceQuality "1"]
[TimeControl "5400+30"]

1. Nf3 {[%emt 0:01:31]} Nf6 {[%emt 0:00:07]} 2. g3 {[%emt 0:00:30]} c5 {[%emt 0:00:10]} 3. Bg2 {[%emt 0:00:06]} Nc6 {[%emt 0:00:04]} 4. c4 {[%emt 0:00:25]} g6 {[%emt 0:00:09]} 5. O-O {[%emt 0:00:11]} Bg7 {[%emt 0:00:02]} 6. Nc3 {[%emt 0:00:16]} O-O {[%emt 0:00:05]} 7. d4 {[%emt 0:00:37]} cxd4 {[%emt 0:01:40]} 8. Nxd4 {[%emt 0:00:12]} Nxd4 {[%emt 0:00:32]} 9. Qxd4 {[%emt 0:00:09]} d6 {[%emt 0:00:13]} 10. h3 {[%emt 0:04:06]} Bd7 {[%emt 0:12:39]} 11. Qd3 {[%emt 0:01:20]} Bc6 {[%emt 0:11:36]} 12. e4 {[%emt 0:01:23]} Nd7 {[%emt 0:05:22]} 13. b3 {[%emt 0:06:28]} Nc5 {[%emt 0:03:47]} 14. Qc2 {[%emt 0:00:43]} Nxe4 {[%emt 0:03:19]} 15. Bxe4 {[%emt 0:02:06]} Bxe4 {[%emt 0:00:57]} 16. Qxe4 {[%emt 0:03:47]} Bxc3 {[%emt 0:00:48]} 17. Rb1 {[%emt 0:00:12]} Qd7 {[%emt 0:00:16]} 18. Kh2 {[%emt 0:02:05]} Qf5 {[%emt 0:04:32]} 19. Qxf5 {[%emt 0:01:20]} gxf5 {[%emt 0:00:04]} 20. Bg5 {[%emt 0:00:24]} f6 {[%emt 0:00:47]} 21. Bh6 {[%emt 0:00:17]} Rfd8 {[%emt 0:00:18]} 22. Rbc1 {[%emt 0:00:16]} Bb4 {[%emt 0:00:38]} 23. Kg2 {[%emt 0:00:34]} a5 {[%emt 0:00:17]} 24. Be3 {[%emt 0:00:53]} a4 {[%emt 0:09:11]} 25. Rfd1 {[%emt 0:02:09]} axb3 {[%emt 0:02:49]} 26. axb3 {[%emt 0:00:08]} Bc5 {[%emt 0:07:48]} 27. Bxc5 {[%emt 0:09:48]} dxc5 {[%emt 0:01:05]} 28. Ra1 {[%emt 0:02:22]} Rxd1 {[%emt 0:04:41]} 29. Rxa8+ {[%emt 0:02:36]} Kf7 {[%emt 0:00:13]} 30. Rc8 {[%emt 0:01:11]} b6 {[%emt 0:00:55]} 31. Rh8 {[%emt 0:11:17]} Kg7 {[%emt 0:02:38]} 32. Re8 {[%emt 0:01:18]} Rd7 {[%emt 0:00:27]} 33. h4 {[%emt 0:00:09]} h5 {[%emt 0:00:35]} 34. Kf1 {[%emt 0:01:42]} f4 {[%emt 0:15:08]} 35. gxf4 {[%emt 0:03:18]} Kg6 {[%emt 0:00:13]} 36. Ke2 {[%emt 0:01:08]} Kf5 {[%emt 0:00:02]} 37. f3 {[%emt 0:05:24]} Kxf4 {[%emt 0:01:12]} 38. Rh8 {[%emt 0:00:18]} Ra7 {[%emt 0:00:37]} 39. Rxh5 {[%emt 0:37:21]} Ra3 {[%emt 0:00:40]} 40. Rh7 {[%emt 0:00:00]} e5 {[%emt 0:00:26]} 41. Rf7 {[%emt 0:00:00]} f5 {[%emt 0:00:17]} 42. h5 {[%emt 0:00:00]} Rxb3 {[%emt 0:00:12]} 43. h6 {[%emt 0:00:00]} Rb2+ {[%emt 0:00:02]} 44. Kd3 {[%emt 0:00:00]} Rf2 {[%emt 0:00:06]} 45. h7 {[%emt 0:00:00]} Rxf3+ {[%emt 0:00:03]} 46. Ke2 {[%emt 0:00:00]} Rh3 {[%emt 0:00:03]} 47. Rb7 {[%emt 0:00:00]} e4 {[%emt 0:00:23]} 48. Rf7 {[%emt 0:00:00]} Ke5 {[%emt 0:00:18]} 49. Kf2 {[%emt 0:00:00]} f4 {[%emt 0:00:20]} 0-1

[Event "30th Abu Dhabi Festival A-Open 2024"]
[Site "Abu Dhabi"]
[Date "2024.08.22"]
[Round "7.5"]
[White "Aditya Varun Gampa"]
[Black "Zhou, Yichen"]
[Result "1/2-1/2"]
[ECO "B50"]
[WhiteElo "2261"]
[BlackElo "2023"]
[Annotator "RC"]
[PlyCount "91"]
[EventDate "2024.08.15"]
[EventType "swiss"]
[EventCountry "UAE"]
[SourceTitle "playchess.com"]
[Source "ChessBase"]
[SourceQuality "1"]
[TimeControl "5400+30"]

1. e4 {[%emt 0:03:29]} c5 {[%emt 0:00:02]} 2. Nf3 {[%emt 0:00:12]} d6 {[%emt 0:00:05]} 3. Nc3 {[%emt 0:00:05]} Nf6 {[%emt 0:00:05]} 4. e5 {[%emt 0:00:07]} dxe5 {[%emt 0:01:37]} 5. Nxe5 {[%emt 0:00:08]} e6 {[%emt 0:00:35]} 6. Bb5+ {[%emt 0:00:07]} Nbd7 {[%emt 0:00:42]} 7. d4 {[%emt 0:00:40]} a6 {[%emt 0:11:12]} 8. Bxd7+ {[%emt 0:00:10]} Nxd7 {[%emt 0:00:09]} 9. Qf3 {[%emt 0:01:36]} Qf6 {[%emt 0:01:51]} 10. Bf4 {[%emt 0:00:27]} cxd4 {[%emt 0:07:43]} 11. Ne4 {[%emt 0:00:07]} Qf5 {[%emt 0:00:02]} 12. Nc4 {[%emt 0:00:35]} Qd5 {[%emt 0:00:09]} 13. Ncd6+ {[%emt 0:03:41]} Bxd6 {[%emt 0:00:06]} 14. Nxd6+ {[%emt 0:00:03]} Ke7 {[%emt 0:00:06]} 15. Qxd5 {[%emt 0:00:44]} exd5 {[%emt 0:00:02]} 16. O-O-O {[%emt 0:01:41]} Nc5 {[%emt 0:15:46]} 17. Rhe1+ {[%emt 0:03:50]} Be6 {[%emt 0:00:07]} 18. Rxd4 {[%emt 0:08:06]} Rhd8 {[%emt 0:17:03]} 19. b4 {[%emt 0:14:51]} Rxd6 {[%emt 0:00:06]} 20. Bxd6+ {[%emt 0:00:39]} Kxd6 {[%emt 0:00:01]} 21. bxc5+ {[%emt 0:00:01]} Kxc5 {[%emt 0:00:02]} 22. c3 {[%emt 0:00:45]} b5 {[%emt 0:01:19]} 23. a4 {[%emt 0:01:53]} bxa4 {[%emt 0:04:58]} 24. Rxa4 {[%emt 0:00:17]} a5 {[%emt 0:00:38]} 25. Kd2 {[%emt 0:02:03]} Bd7 {[%emt 0:06:37]} 26. Ra3 {[%emt 0:03:08]} a4 {[%emt 0:01:05]} 27. Re7 {[%emt 0:00:53]} Be6 {[%emt 0:00:04]} 28. Rb7 {[%emt 0:00:18]} h6 {[%emt 0:03:06]} 29. Ke3 {[%emt 0:03:51]} Ra6 {[%emt 0:04:37]} 30. f3 {[%emt 0:01:29]} h5 {[%emt 0:01:35]} 31. h4 {[%emt 0:00:23]} Ra8 {[%emt 0:06:12]} 32. Kf4 {[%emt 0:00:19]} Kd6 {[%emt 0:00:32]} 33. Kg5 {[%emt 0:04:08]} Ra5 {[%emt 0:01:24]} 34. Kf4 {[%emt 0:01:38]} Ra8 {[%emt 0:00:41]} 35. Ke3 {[%emt 0:06:18]} Kc5 {[%emt 0:00:26]} 36. Kf4 {[%emt 0:02:26]} Kd6 {[%emt 0:00:30]} 37. g4 {[%emt 0:00:24]} hxg4 {[%emt 0:00:37]} 38. fxg4 {[%emt 0:00:05]} Bd7 {[%emt 0:01:01]} 39. h5 {[%emt 0:00:55]} Re8 {[%emt 0:00:48]} 40. Rb4 {[%emt 0:03:10]} Re1 {[%emt 0:03:04]} 41. Kg5 {[%emt 0:11:44]} Rg1 {[%emt 0:03:39]} 42. Kh4 {[%emt 0:04:41]} f6 {[%emt 0:03:18]} 43. Rd4 {[%emt 0:01:52]} Ke5 {[%emt 0:01:20]} 44. Ra2 {[%emt 0:01:00]} Rh1+ {[%emt 0:00:42]} 45. Kg3 {[%emt 0:00:01]} Rc1 {[%emt 0:01:16]} 46. Ra3 {[%emt 0:18:30]} 1/2-1/2